bitfinex/quotes_BTCUSD_20251219
["timestamp","ask_amount","ask_price","bid_price","bid_amount"]
[1766140769427,0.02544549,88110.0,88098.0,0.00568]
[1766140769645,0.03679493,88110.0,88098.0,0.00568]
[1766140769865,0.09354266,88110.0,88098.0,0.00568]
[1766140770626,0.03679493,88110.0,88098.0,0.00568]
[1766140771165,0.01384944,88110.0,88098.0,0.00568]
[1766140771966,0.07059691,88110.0,88098.0,0.00568]
[1766140772152,0.01134957,88109.0,88098.0,0.00568]
[1766140772364,0.07059677,88110.0,88098.0,0.00568]
[1766140772541,0.29791677,88110.0,88098.0,0.00568]
[1766140772997,0.01134957,88109.0,88098.0,0.00568]
[1766140773925,0.71959,88108.0,88098.0,0.00568]
[1766140775619,0.48156,88108.0,88098.0,0.00568]
[1766140776254,0.47668,88106.0,88098.0,0.00568]
[1766140776790,0.23803,88108.0,88098.0,0.00568]
[1766140778704,0.2493797,88108.0,88098.0,0.00568]
[1766140778909,0.29477997,88106.0,88098.0,0.00568]
[1766140779109,0.02294549,88105.0,88098.0,0.00568]
[1766140779715,0.00818,88110.0,88099.0,0.01135086]
[1766140779934,0.00818,88110.0,88101.0,0.00612]
[1766140780129,0.0025,88110.0,88101.0,0.00612]
[1766140780335,0.76662236,88118.0,88100.0,0.05084894]
[1766140780336,0.03410844,88118.0,88105.0,0.01135009]
[1766140780536,0.00568,88120.0,88110.0,0.06809668]
[1766140780730,0.00568,88120.0,88111.0,0.00317771]
[1766140780939,0.00568,88120.0,88107.0,0.00317771]
[1766140781341,0.00568,88120.0,88107.0,0.01452754]
[1766140783318,0.00568,88120.0,88107.0,0.07127659]
[1766140784485,0.00568,88120.0,88107.0,0.00317771]
[1766140785290,0.00568,88120.0,88106.0,0.06809927]
[1766140785536,0.24621,88125.0,88108.0,0.00317782]
[1766140786779,0.0025,88126.0,88110.0,0.01134944]
[1766140786994,0.0025,88126.0,88111.0,0.00317771]
[1766140787191,0.0025,88124.0,88111.0,0.00317771]
[1766140787824,0.00818,88124.0,88111.0,0.00317771]
[1766140788021,0.0025,88124.0,88111.0,0.00317771]
[1766140788318,0.00818,88124.0,88111.0,0.00317771]
[1766140788964,0.0025,88123.0,88111.0,0.00010929]
[1766140790096,0.0025,88126.0,88111.0,0.00010929]
[1766140790269,0.0025,88123.0,88111.0,0.00010929]
[1766140790470,0.0025,88123.0,88111.0,0.01573526]
[1766140790811,0.0025,88123.0,88112.0,0.01134919]
[1766140790963,0.0025,88123.0,88113.0,0.00427656]
[1766140791171,0.0025,88123.0,88113.0,0.01562562]
[1766140791574,0.0025,88123.0,88113.0,0.00427656]
[1766140792199,0.0025,88123.0,88112.0,0.06809499]
[1766140792402,0.0025,88123.0,88113.0,0.01134906]
[1766140792615,0.0025,88123.0,88113.0,0.01702906]
[1766140793172,0.0025,88123.0,88113.0,0.07377428]
[1766140793372,0.0025,88123.0,88113.0,0.01702906]
[1766140793958,0.0025,88123.0,88115.0,0.0113488]
[1766140794161,0.0025,88123.0,88114.0,0.0680934]
[1766140794364,0.0025,88123.0,88115.0,0.0113488]
[1766140794502,0.0025,88123.0,88114.0,0.01134893]
[1766140795092,0.0025,88127.0,88115.0,0.00200671]
[1766140795299,0.0025,88127.0,88114.0,0.00200671]
[1766140795525,0.0025,88127.0,88114.0,0.01335564]
[1766140795935,0.0025,88127.0,88114.0,0.00200671]
[1766140797148,0.0025,88127.0,88113.0,0.07377429]
[1766140797472,0.0025,88127.0,88113.0,0.00568]
[1766140798520,0.00818,88129.0,88113.0,0.00568]
[1766140798861,0.24621,88129.0,88113.0,0.00568]
[1766140799348,0.72289,88129.0,88113.0,0.00568]
[1766140799521,0.734237,88129.0,88113.0,0.00568]
[1766140799722,0.00024767,88123.0,88113.0,0.00568]
[1766140808350,0.02209416,88123.0,88113.0,0.00568]
[1766140812548,0.00024767,88123.0,88113.0,0.00568]
[1766140812699,0.02209416,88123.0,88113.0,0.00568]
[1766140815453,0.00024767,88123.0,88113.0,0.00568]
[1766140816551,0.23131,88122.0,88113.0,0.00568]
[1766140816798,0.02184649,88122.0,88113.0,0.00568]
[1766140817010,0.49991767,88123.0,88113.0,0.00568]
[1766140817011,0.00024767,88123.0,88113.0,0.00568]
[1766140823867,0.02209416,88123.0,88113.0,0.00568]
[1766140825540,0.00024767,88123.0,88114.0,0.03632009]
[1766140830716,0.00024767,88123.0,88113.0,0.00568]
[1766140831096,1.83978216,88123.0,88113.0,0.00568]
[1766140840054,1.83978216,88123.0,88113.0,0.004581]
[1766140840477,0.22033,88122.0,88113.0,0.004581]
[1766140841121,0.02184649,88121.0,88113.0,0.004581]
[1766140841317,0.02184649,88122.0,88113.0,0.004581]
[1766140843060,0.01134803,88121.0,88113.0,0.004581]
[1766140843296,0.06808871,88121.0,88113.0,0.004581]
[1766140843497,0.01134816,88120.0,88113.0,0.004581]
[1766140843701,0.06808871,88121.0,88113.0,0.004581]
[1766140843926,0.08993393,88122.0,88113.0,0.004581]
[1766140845314,0.02184649,88122.0,88113.0,0.004581]
[1766140851500,0.03319439,88122.0,88113.0,0.004581]
[1766140851910,0.02184649,88122.0,88113.0,0.004581]
[1766140852682,0.03319439,88122.0,88113.0,0.004581]
[1766140852898,0.02184649,88122.0,88113.0,0.004581]
[1766140853118,0.03319439,88122.0,88113.0,0.004581]
[1766140853336,0.02184649,88122.0,88113.0,0.004581]
[1766140856230,0.03319439,88122.0,88113.0,0.004581]
[1766140856437,0.02184649,88122.0,88113.0,0.004581]
[1766140859550,0.00024767,88123.0,88122.0,0.001099]
[1766140859951,0.00024767,88123.0,88113.0,0.004581]
[1766140863450,0.00024767,88123.0,88113.0,0.01593006]
[1766140863696,6.7e-07,88123.0,88114.0,0.01134893]
[1766140863898,0.51066339,88157.0,88133.0,0.05673202]
[1766140864148,0.01136,88148.0,88136.0,0.0113461]
[1766140864403,0.49932,88157.0,88132.0,0.00568]
[1766140864404,0.01134404,88152.0,88132.0,0.01702661]
[1766140864608,1.83953449,88150.0,88135.0,0.01384623]
[1766140864933,1.83953449,88150.0,88135.0,0.0025]
[1766140865371,1.83953449,88150.0,88136.0,0.0113461]
[1766140866896,0.0004,88154.0,88136.0,0.06807649]
[1766140867100,1.83953449,88150.0,88136.0,0.0113461]
[1766140867465,1.83953449,88150.0,88135.0,0.0025]
[1766140867783,1.83953449,88150.0,88135.0,0.05923097]
[1766140868204,1.83953449,88150.0,88135.0,0.0705772]
[1766140868381,1.83953449,88150.0,88136.0,0.0113461]
[1766140868761,1.83953449,88150.0,88137.0,0.01134597]
[1766140868881,1.83953449,88150.0,88138.0,0.00568]
[1766140869395,0.0004,88156.0,88147.0,0.01134468]
[1766140869592,1.84521449,88160.0,88150.0,0.000852]
[1766140869794,1.84521449,88160.0,88146.0,0.0476649]
[1766140870134,0.0004,88163.0,88148.0,0.01134455]
[1766140870475,0.0004,88163.0,88153.0,0.01134391]
[1766140870690,0.0004,88163.0,88154.0,0.00314002]
[1766140870887,0.04582785,88172.0,88155.0,0.06806187]
[1766140870888,0.03448639,88172.0,88155.0,0.06806187]
[1766140871084,0.03448639,88172.0,88163.0,0.0004]
[1766140871492,0.0004,88172.0,88161.0,0.00568]
[1766140871646,0.0025,88171.0,88161.0,0.00568]
[1766140872056,0.0004,88172.0,88161.0,0.00568]
[1766140872617,0.0025,88171.0,88161.0,0.00568]
[1766140872975,0.00232834,88171.0,88161.0,0.00568]
[1766140873571,0.00232834,88171.0,88162.0,0.00313973]
[1766140874178,0.00232834,88171.0,88161.0,0.00568]
[1766140874504,1.84186283,88171.0,88162.0,0.00313973]
[1766140874705,1.84186283,88171.0,88161.0,0.00568]
[1766140874876,0.00232834,88171.0,88161.0,0.00568]
[1766140875079,0.00232834,88171.0,88162.0,0.00314068]
[1766140875998,0.00232834,88171.0,88161.0,0.00568]
[1766140876406,0.00034025,88162.0,88161.0,0.00568]
[1766140885031,0.01134314,88159.0,88139.0,0.01702571]
[1766140885236,1.83743643,88150.0,88144.0,0.03632009]
[1766140885412,1.83743643,88154.0,88144.0,0.03632009]
[1766140885800,0.00024744,88159.0,88145.0,0.12291]
[1766140886022,0.00024744,88159.0,88147.0,0.12291]
[1766140886023,0.01159058,88159.0,88147.0,0.12291]
[1766140886221,0.06830653,88159.0,88147.0,0.12291]
[1766140886894,0.226853,88163.0,88146.0,0.00568]
[1766140887101,1.59893643,88160.0,88146.0,0.00568]
[1766140887316,1.42979643,88160.0,88146.0,0.00568]
[1766140887558,1.83816719,88160.0,88146.0,0.00568]
[1766140888319,0.02209349,88159.0,88146.0,0.00568]
[1766140889850,0.02209349,88160.0,88146.0,0.00568]
[1766140890068,0.02245771,88160.0,88146.0,0.00568]
[1766140891598,0.0004,88173.0,88160.0,0.001099]
[1766140891799,0.00050922,88172.0,88161.0,0.00568]
[1766140892023,0.00050922,88172.0,88162.0,0.00302157]
[1766140892400,0.00050922,88172.0,88161.0,0.00568]
[1766140892401,0.02072943,88172.0,88161.0,0.00568]
[1766140893382,0.23516159,88171.0,88161.0,0.00568]
[1766140893637,0.22382,88168.0,88148.0,0.01384455]
[1766140893850,0.02209349,88167.0,88149.0,0.00568]
[1766140894103,0.0334356,88167.0,88149.0,0.00568]
[1766140894331,0.02209349,88167.0,88149.0,0.00568]
[1766140894553,0.02209349,88167.0,88149.0,0.01702442]
[1766140894976,0.02209349,88167.0,88151.0,0.0025]
[1766140895122,0.02209349,88168.0,88151.0,0.0025]
[1766140895710,0.02209349,88168.0,88151.0,0.01384417]
[1766140895940,0.02209349,88168.0,88151.0,0.0025]
[1766140896175,0.02209349,88169.0,88151.0,0.01384417]
[1766140896557,0.02209349,88169.0,88152.0,0.0025]
[1766140897194,0.00024747,88167.0,88152.0,0.0025]
[1766140898548,0.01158958,88167.0,88152.0,0.0025]
[1766140898718,0.02209349,88166.0,88152.0,0.0025]
[1766140898908,0.00024747,88167.0,88152.0,0.0025]
[1766140899071,0.02234096,88167.0,88152.0,0.0025]
[1766140899992,0.00024747,88167.0,88152.0,0.0025]
[1766140900192,0.02234096,88167.0,88152.0,0.0025]
[1766140902234,0.00024747,88167.0,88152.0,0.0025]
[1766140902441,0.02234096,88167.0,88152.0,0.0025]
[1766140903452,0.00024747,88167.0,88152.0,0.0025]
[1766140903690,0.02234096,88167.0,88152.0,0.0025]
[1766140904729,0.00024747,88167.0,88152.0,0.0025]
[1766140904870,0.27072096,88167.0,88152.0,0.0025]
[1766140905071,0.24862747,88167.0,88152.0,0.0025]
[1766140905293,0.02209349,88166.0,88152.0,0.0025]
[1766140906656,0.27047349,88166.0,88152.0,0.0025]
[1766140906773,0.24838,88166.0,88152.0,0.0025]
[1766140906974,0.02209349,88165.0,88152.0,0.0025]
[1766140908052,0.32718566,88165.0,88152.0,0.0025]
[1766140908208,0.72459262,88163.0,88152.0,0.0025]
[1766140908406,0.27047349,88162.0,88152.0,0.0025]
[1766140908661,0.24838,88162.0,88152.0,0.0025]
[1766140908829,0.02209349,88161.0,88149.0,0.00568]
[1766140909047,0.24838,88158.0,88149.0,0.00568]
[1766140909457,0.247281,88158.0,88149.0,0.00568]
[1766140910033,0.46487,88159.0,88149.0,0.00568]
[1766140911178,0.0025,88164.0,88149.0,0.00568]
[1766140911350,0.24838,88163.0,88149.0,0.00568]
[1766140911556,0.71325,88162.0,88149.0,0.00568]
[1766140911737,0.24838,88161.0,88149.0,0.00568]
[1766140912870,0.0025,88164.0,88149.0,0.00568]
[1766140913073,0.24838,88163.0,88149.0,0.00568]
[1766140914450,0.24838,88163.0,88149.0,0.01702442]
[1766140915207,0.24838,88163.0,88150.0,0.06806578]
[1766140915533,0.24838,88163.0,88153.0,0.06806326]
[1766140915685,0.0025,88164.0,88154.0,0.01134378]
[1766140915849,0.0025,88164.0,88153.0,0.06806338]
[1766140916056,0.00024747,88167.0,88155.0,0.01134365]
[1766140916257,0.00024747,88167.0,88158.0,0.03632009]
[1766140918132,0.01,88190.0,88164.0,0.01134249]
[1766140918355,0.00026933,88192.0,88183.0,0.0025]
[1766140918595,0.00026933,88192.0,88185.0,0.0025]
[1766140918881,0.00026933,88192.0,88185.0,0.01383979]
[1766140919081,0.00026933,88192.0,88190.0,0.05669538]
[1766140919248,0.00026933,88192.0,88189.0,0.01133928]
[1766140919652,0.00026933,88192.0,88190.0,0.05669537]
[1766140920037,0.00026933,88192.0,88188.0,0.01133941]
[1766140920237,0.00026933,88192.0,88189.0,0.01133928]
[1766140920435,0.00026933,88192.0,88187.0,0.01133953]
[1766140920621,0.00026933,88192.0,88187.0,0.06803716]
[1766140921026,0.00026933,88192.0,88188.0,0.01133941]
[1766140921247,0.00026933,88192.0,88185.0,0.01383979]
[1766140921456,0.00026933,88192.0,88186.0,0.01133966]
[1766140921861,0.00026933,88192.0,88188.0,0.01133941]
[1766140922073,0.00026933,88192.0,88186.0,0.01133966]
[1766140922074,0.15,88205.0,88204.0,0.0025]
[1766140922294,0.15,88205.0,88204.0,0.04450009]
[1766140922295,0.14380918,88205.0,88204.0,0.04450009]
[1766140922500,0.13912168,88205.0,88204.0,0.04450009]
[1766140923266,0.13042658,88205.0,88204.0,0.08990009]
[1766140923467,1e-08,88210.0,88209.0,0.05918355]
[1766140923807,1e-08,88212.0,88211.0,0.11920066]
[1766140923982,1e-08,88212.0,88211.0,0.14755356]
[1766140925212,1e-08,88212.0,88211.0,0.09185517]
[1766140925415,1e-08,88212.0,88211.0,0.06358]
[1766140925974,1e-08,88212.0,88211.0,0.0862529]
[1766140926183,1e-08,88212.0,88211.0,0.06358]
[1766140929280,0.00139134,88212.0,88211.0,0.06358]
[1766140931166,0.00139134,88212.0,88211.0,0.05358]
[1766140931716,0.00139134,88212.0,88211.0,0.05108]
[1766140933163,0.00139134,88212.0,88211.0,0.00568]
[1766140934627,0.00139134,88212.0,88207.0,0.0025]
[1766140934831,1e-08,88212.0,88207.0,0.0025]
[1766140935049,0.23925001,88212.0,88207.0,0.0025]
[1766140935877,0.23925001,88212.0,88206.0,0.0025]
[1766140936846,0.23925,88210.0,88200.0,0.00568]
[1766140937003,0.23925,88210.0,88201.0,0.0025]
[1766140937204,0.23925,88210.0,88200.0,0.00568]
[1766140937544,0.23925,88210.0,88201.0,0.0025]
[1766140937685,0.47502,88211.0,88201.0,0.0025]
[1766140938491,0.47502,88211.0,88196.0,0.01701838]
[1766140938833,1e-08,88212.0,88199.0,0.01383799]
[1766140939238,1e-08,88212.0,88199.0,0.01133799]
[1766140939446,1e-08,88212.0,88200.0,0.0025]
[1766140940096,0.00126771,88208.0,88200.0,0.0025]
[1766140940315,0.23925001,88212.0,88200.0,0.0025]
[1766140940488,0.00105135,88201.0,88199.0,0.0025]
[1766140940694,0.23925001,88212.0,88201.0,0.001051]
[1766140941110,0.23925001,88212.0,88199.0,0.0025]
[1766140942208,0.23925,88210.0,88199.0,0.0025]
[1766140942669,0.23925,88209.0,88199.0,0.0025]
[1766140945966,0.00102044,88200.0,88199.0,0.0025]
[1766140946171,1e-08,88212.0,88211.0,0.10920066]
[1766140946386,0.24331,88257.0,88236.0,0.01133324]
[1766140946574,0.24331,88257.0,88238.0,0.0025]
[1766140946847,0.00568,88252.0,88243.0,0.01133234]
[1766140947047,0.24331,88251.0,88240.0,0.01133272]
[1766140947276,0.24331,88251.0,88241.0,0.0113326]
[1766140947472,0.24367408,88251.0,88242.0,0.01133247]
[1766140947713,0.00568,88250.0,88241.0,0.0113326]
[1766140948422,0.00568,88250.0,88242.0,0.01133247]
[1766140948619,0.00568,88250.0,88241.0,0.06799522]
[1766140948925,0.00568,88250.0,88241.0,0.0113326]
[1766140949370,0.00568,88250.0,88240.0,0.07049635]
[1766140949570,0.24899,88250.0,88240.0,0.01383272]
[1766140949880,0.24899,88250.0,88239.0,0.0025]
[1766140950053,0.24331,88246.0,88230.0,0.01133401]
[1766140950266,0.24331,88243.0,88231.0,0.04765397]
[1766140950465,0.24331,88242.0,88231.0,0.10432337]
[1766140950667,0.24331,88242.0,88232.0,0.06800253]
[1766140950869,0.24331,88242.0,88232.0,0.01133375]
[1766140951270,0.47637,88241.0,88228.0,0.05667132]
[1766140951502,0.47637,88240.0,88229.0,0.01133414]
[1766140951648,0.24331,88239.0,88229.0,0.06800473]
[1766140952103,0.24331,88239.0,88230.0,0.0025]
[1766140953390,0.24331,88239.0,88227.0,0.00568]
[1766140953592,0.25464388,88231.0,88210.0,0.06801887]
[1766140953795,1.83420642,88220.0,88211.0,0.04765654]
[1766140953996,0.00568,88222.0,88212.0,0.01133632]
[1766140954204,0.00568,88222.0,88213.0,0.0025]
[1766140954406,0.00568,88222.0,88214.0,0.05668017]
[1766140955212,0.00568,88222.0,88215.0,0.0025]
[1766140956573,0.00568,88222.0,88214.0,0.0025]
[1766140957430,0.00568,88222.0,88213.0,0.0025]
[1766140957854,0.00043268,88214.0,88213.0,0.0025]
[1766140958034,6.8e-07,88214.0,88213.0,0.0025]
[1766140958749,6.8e-07,88214.0,88210.0,0.07051923]
[1766140959080,6.8e-07,88214.0,88207.0,0.01133696]
[1766140959081,0.000432,88210.0,88199.0,0.00568]
[1766140959294,0.000432,88210.0,88202.0,0.01133761]
[1766140959503,0.24518,88213.0,88200.0,0.07052684]
[1766140959680,0.47997,88214.0,88203.0,0.01133748]
[1766140960205,0.47997,88214.0,88204.0,0.01133735]
[1766140960352,0.47997,88214.0,88202.0,0.01133761]
[1766140960558,0.47997,88214.0,88201.0,0.01133773]
[1766140960758,0.47997,88214.0,88200.0,0.0025]
[1766140960958,0.72515,88214.0,88200.0,0.0025]
[1766140961405,0.72515,88214.0,88200.0,0.05918913]
[1766140961605,0.72515,88214.0,88202.0,0.01133761]
[1766140961827,0.72515,88214.0,88201.0,0.01133773]
[1766140962147,0.72515,88214.0,88200.0,0.01383786]
[1766140962148,0.24518,88213.0,88200.0,0.0025]
[1766140962422,0.24518,88211.0,88200.0,0.0025]
[1766140963182,1.83420642,88210.0,88200.0,0.0025]
[1766140963414,0.00568,88209.0,88200.0,0.0025]
[1766140963588,0.24518,88208.0,88200.0,0.0025]
[1766140963786,0.000432,88200.0,88186.0,0.03406882]
[1766140963988,0.24518,88197.0,88183.0,0.00568]
[1766140964368,0.24518,88197.0,88178.0,0.01134069]
[1766140964369,0.72515,88192.0,88178.0,0.01134069]
[1766140964499,0.47997,88192.0,88181.0,0.01384031]
[1766140964897,0.47997,88192.0,88185.0,0.01133979]
[1766140965097,0.00568,88193.0,88184.0,0.05669956]
[1766140965353,0.00568,88193.0,88185.0,0.0025]
[1766140965493,0.00568,88193.0,88185.0,0.01383979]
[1766140965698,0.00568,88193.0,88185.0,0.0025]
[1766140968809,0.00568,88193.0,88188.0,0.01133941]
[1766140969145,0.00308,88193.0,88188.0,0.01133941]
[1766140969678,0.00308,88193.0,88188.0,0.06803635]
[1766140969883,0.00568,88196.0,88188.0,0.06803635]
[1766140970062,0.00568,88196.0,88191.0,0.05669479]
[1766140970262,0.00568,88196.0,88189.0,0.01133928]
[1766140970672,0.00568,88196.0,88187.0,0.06803678]
[1766140971050,0.00568,88196.0,88187.0,0.01133953]
[1766140971651,0.00568,88196.0,88187.0,0.06803719]
[1766140971913,0.00568,88196.0,88187.0,0.01133953]
[1766140972117,0.00568,88196.0,88189.0,0.01133928]
[1766140972583,0.00568,88196.0,88188.0,0.06803605]
[1766140973108,0.00568,88196.0,88189.0,0.01133928]
[1766140973309,0.00568,88196.0,88190.0,0.01133915]
[1766140973671,0.00568,88196.0,88188.0,0.06803605]
[1766140973819,0.00568,88196.0,88189.0,0.01133928]
[1766140974005,0.47997,88199.0,88189.0,0.06803554]
[1766140974203,0.00010912,88200.0,88187.0,0.01133953]
[1766140974204,0.00010912,88200.0,88195.0,0.05669206]
[1766140974427,1.2e-07,88200.0,88198.0,0.05669062]
[1766140974645,1.2e-07,88200.0,88199.0,0.05668998]
[1766140976118,1.2e-07,88200.0,88198.0,0.05669062]
[1766140977041,1.2e-07,88200.0,88199.0,0.05668998]
[1766140977575,1.2e-07,88200.0,88198.0,0.05669043]
[1766140978111,1.2e-07,88200.0,88199.0,0.05668998]
[1766140978288,1.2e-07,88200.0,88198.0,0.05669043]
[1766140979507,1.2e-07,88200.0,88197.0,0.01133825]
[1766140980453,1.2e-07,88200.0,88196.0,0.01133838]
[1766140980601,1.2e-07,88200.0,88195.0,0.01133851]
[1766140980962,1.2e-07,88200.0,88197.0,0.01133825]
[1766140981114,1.2e-07,88200.0,88197.0,0.06802897]
[1766140981538,1.2e-07,88200.0,88198.0,0.05669046]
[1766140982175,0.000541,88198.0,88194.0,0.01383863]
[1766140982300,0.000541,88198.0,88194.0,0.07053179]
[1766140982494,1.2e-07,88200.0,88186.0,0.01133966]
[1766140982707,0.24518,88198.0,88190.0,0.0025]
[1766140983139,0.24518,88198.0,88190.0,0.001959]
[1766140983706,0.24518,88196.0,88187.0,0.00568]
[1766140984264,0.24518,88196.0,88185.0,0.1478]
[1766140984694,0.47361,88196.0,88185.0,0.1478]
[1766140985146,0.47361,88196.0,88186.0,0.0025]
[1766140986202,0.47361,88196.0,88184.0,0.0025]
[1766140986362,0.7194,88196.0,88184.0,0.0025]
[1766140986555,0.24579,88195.0,88184.0,0.0025]
[1766140988086,0.24579,88194.0,88184.0,0.0025]
[1766140988285,0.24579,88192.0,88181.0,0.0025]
[1766140989429,0.24579,88192.0,88181.0,0.01384031]
[1766140990211,0.47361,88193.0,88182.0,0.01134018]
[1766140992170,0.47361,88193.0,88181.0,0.0025]
[1766140992349,0.47361,88193.0,88181.0,0.01384031]
[1766140992490,0.47361,88193.0,88181.0,0.0025]
[1766140993199,0.47361,88193.0,88181.0,0.01384031]
[1766140993401,0.47361,88193.0,88181.0,0.0025]
[1766140993602,0.47361,88193.0,88180.0,0.01384044]
[1766140994518,0.47361,88193.0,88182.0,0.0025]
[1766140994741,0.47361,88193.0,88182.0,0.01384018]
[1766140995130,0.47361,88193.0,88184.0,0.0025]
[1766140995632,0.47361,88193.0,88185.0,0.0025]
[1766140996616,0.47361,88193.0,88184.0,0.0025]
[1766140997728,0.47361,88193.0,88182.0,0.0025]
[1766140997927,0.00568,88194.0,88182.0,0.01134018]
[1766140998169,0.00568,88194.0,88183.0,0.0025]
[1766140998371,0.00568,88194.0,88183.0,0.01384005]
[1766140998574,0.00568,88194.0,88184.0,0.01133992]
[1766140998752,0.00568,88194.0,88185.0,0.0025]
[1766140998917,0.00568,88194.0,88185.0,0.01383979]
[1766140999108,0.00568,88194.0,88185.0,0.0025]
[1766140999718,0.00568,88194.0,88185.0,0.05919847]
[1766141000002,0.00568,88194.0,88185.0,0.01383979]
[1766141000331,0.00568,88194.0,88185.0,0.0025]
[1766141003865,0.00568,88194.0,88173.0,0.01134134]
[1766141003866,0.03632009,88190.0,88173.0,0.01134134]
[1766141004065,0.03632009,88190.0,88163.0,0.01134262]
[1766141004066,1.84803901,88183.0,88163.0,0.01134262]
[1766141004277,0.06804301,88180.0,88159.0,0.02134314]
[1766141004478,1.83669896,88170.0,88161.0,0.07805676]
[1766141004676,1.83669896,88170.0,88162.0,0.01384275]
[1766141004917,1.83669896,88170.0,88163.0,0.06805575]
[1766141005078,1.84237896,88173.0,88164.0,0.0025]
[1766141006504,0.00568,88173.0,88164.0,0.0025]
[1766141009050,0.26716,88173.0,88156.0,0.01702352]
[1766141009260,1.83669896,88170.0,88157.0,0.01134339]
[1766141009480,1.83669896,88170.0,88158.0,0.0025]
[1766141009693,1.83669896,88170.0,88157.0,0.01134339]
[1766141009694,1.83669896,88170.0,88157.0,0.06806033]
[1766141009867,1.83669896,88170.0,88156.0,0.00568]
[1766141010076,0.26148,88172.0,88157.0,0.0025]
[1766141010279,1.83669896,88167.0,88156.0,0.00568]
[1766141010504,0.26148,88165.0,88151.0,0.00568]
[1766141010666,1.83669896,88160.0,88152.0,0.0025]
[1766141011380,0.26148,88165.0,88152.0,0.0025]
[1766141011586,0.00568,88166.0,88152.0,0.0025]
[1766141013527,0.00568,88167.0,88166.0,0.001099]
[1766141013861,0.00568,88167.0,88160.0,0.01581806]
[1766141014057,0.00568,88167.0,88160.0,0.02716107]
[1766141014271,0.00568,88167.0,88161.0,0.01134288]
[1766141014485,0.00568,88167.0,88162.0,0.01134275]
[1766141014706,0.00568,88167.0,88160.0,0.02716107]
[1766141014924,0.00568,88167.0,88159.0,0.0025]
[1766141015729,0.00568,88167.0,88159.0,0.01384314]
[1766141016345,0.00568,88170.0,88167.0,0.001099]
[1766141016962,0.00568,88170.0,88162.0,0.01134275]
[1766141017160,0.00568,88170.0,88161.0,0.01134288]
[1766141017355,0.00568,88170.0,88160.0,0.01134301]
[1766141017735,0.00568,88170.0,88159.0,0.03652942]
[1766141017933,0.00568,88170.0,88160.0,0.01134301]
[1766141020324,0.00568,88170.0,88161.0,0.01134288]
[1766141020567,0.00568,88170.0,88161.0,0.06805728]
[1766141021147,0.00568,88170.0,88160.0,0.06805753]
[1766141022133,0.00568,88170.0,88161.0,0.01134288]
[1766141023079,0.00568,88170.0,88162.0,0.01134275]
[1766141023265,0.00568,88170.0,88162.0,0.06805639]
[1766141024262,0.00568,88170.0,88161.0,0.06805707]
[1766141024730,0.00568,88170.0,88162.0,0.01134275]
[1766141024947,0.00568,88170.0,88161.0,0.01134288]
[1766141025158,0.25946,88178.0,88161.0,0.0680569]
[1766141025360,0.00568,88177.0,88163.0,0.01134262]
[1766141025552,0.00568,88177.0,88162.0,0.05671328]
[1766141025553,0.00568,88177.0,88162.0,0.06805603]
[1766141025716,0.00568,88177.0,88163.0,0.00010899]
[1766141025913,0.00568,88177.0,88163.0,0.01145161]
[1766141026079,0.00568,88177.0,88163.0,0.00010899]
[1766141026849,0.0025,88179.0,88164.0,0.05671232]
[1766141027042,0.00568,88176.0,88165.0,0.01134236]
[1766141027245,0.00568,88176.0,88163.0,0.00010899]
[1766141027452,0.00568,88176.0,88164.0,0.01134249]
[1766141027997,0.00568,88176.0,88163.0,0.01145161]
[1766141028199,0.00568,88176.0,88164.0,0.01134249]
[1766141029346,0.00568,88176.0,88163.0,0.06816466]
[1766141029674,0.00568,88176.0,88163.0,0.00010899]
[1766141032137,0.00568,88176.0,88163.0,0.01145161]
[1766141033275,0.00568,88176.0,88163.0,0.06771441]
[1766141033697,0.00568,88176.0,88165.0,0.01134236]
[1766141035034,0.00568,88175.0,88165.0,0.01134236]
[1766141035197,0.00568,88175.0,88164.0,0.06805485]
[1766141035400,0.00568,88175.0,88162.0,0.01134275]
[1766141035601,0.00568,88175.0,88164.0,0.01134249]
[1766141035809,0.00568,88175.0,88163.0,0.01134262]
[1766141037409,0.00568,88175.0,88167.0,0.01134211]
[1766141037613,0.00568,88175.0,88166.0,0.06805322]
[1766141037814,0.00568,88175.0,88164.0,0.01134249]
[1766141038037,0.00568,88175.0,88164.0,0.06805446]
[1766141038241,0.00568,88175.0,88165.0,0.06805411]
[1766141038965,0.00568,88175.0,88165.0,0.01134236]
[1766141039157,0.00568,88175.0,88165.0,0.06805409]
[1766141039569,0.00568,88175.0,88164.0,0.06805446]
[1766141039745,0.00568,88175.0,88163.0,0.0680557]
[1766141039948,0.00568,88175.0,88164.0,0.01134249]
[1766141040146,0.00568,88174.0,88164.0,0.01134249]
[1766141040489,0.00568,88174.0,88163.0,0.0680557]
[1766141040739,0.00568,88174.0,88163.0,0.01134262]
[1766141041410,0.00568,88174.0,88167.0,0.01134211]
[1766141041729,0.00568,88174.0,88166.0,0.06805293]
[1766141042121,0.00568,88174.0,88163.0,0.01134262]
[1766141042912,0.00568,88174.0,88164.0,0.01134249]
[1766141043117,0.00568,88174.0,88163.0,0.06805528]
[1766141043321,0.00568,88174.0,88164.0,0.01134249]
[1766141043946,0.00568,88174.0,88163.0,0.06805528]
[1766141044154,0.00568,88174.0,88164.0,0.05671249]
[1766141044309,0.00568,88174.0,88167.0,0.01134211]
[1766141044514,0.00568,88174.0,88166.0,0.0680529]
[1766141045050,0.0025,88179.0,88166.0,0.0680529]
[1766141045250,0.00568,88178.0,88166.0,0.0680529]
[1766141045460,0.00568,88178.0,88167.0,0.01134211]
[1766141045809,0.00568,88178.0,88166.0,0.06805341]
[1766141046014,0.00568,88178.0,88167.0,0.01134211]
[1766141046412,0.00568,88178.0,88166.0,0.06805341]
[1766141046601,0.00568,88178.0,88166.0,0.01134224]
[1766141047400,0.00568,88178.0,88165.0,0.06805403]
[1766141047903,0.00568,88178.0,88166.0,0.01134224]
[1766141049293,0.43384,88186.0,88169.0,0.01134185]
[1766141049475,0.04544,88183.0,88168.0,0.01134198]
[1766141049701,0.04544,88183.0,88167.0,0.06805221]
[1766141050040,1.83780546,88180.0,88167.0,0.06805221]
[1766141051005,1.83780546,88180.0,88168.0,0.01134198]
[1766141051364,0.00568,88179.0,88168.0,0.01134198]
[1766141051747,0.00568,88179.0,88169.0,0.06805087]
[1766141051953,0.00568,88179.0,88169.0,0.06804989]